bitfinex-derivatives/quotes_BNBF0:USTF0_20251225
["timestamp","ask_amount","ask_price","bid_price","bid_amount"]
[1766652866337,0.88483926,840.98,840.18,0.89106374]
[1766652867432,0.88483926,840.98,840.19,0.89106374]
[1766652868334,0.88483926,840.97,840.2,0.89106374]
[1766652869440,0.88483926,840.96,840.21,0.89106374]
[1766652870440,0.88483926,840.95,840.21,0.89106374]
[1766652871340,0.88483926,840.95,840.22,0.89106374]
[1766652874337,0.88483926,840.94,840.22,0.89106374]
[1766652875144,0.88483926,840.97,840.25,0.89106374]
[1766652877142,0.88483926,840.98,840.24,0.89106374]
[1766652877342,0.88483926,840.98,840.25,0.89106374]
[1766652878143,0.88483926,840.99,840.25,0.89106374]
[1766652880848,0.88483926,841.24,840.51,0.89106374]
[1766652881045,0.88483926,841.24,839.34,2.96320121]
[1766652881046,0.88483926,841.26,840.52,0.89106374]
[1766652881248,0.88483926,841.3,840.48,0.89106374]
[1766652881948,0.88483926,841.31,840.48,0.89106374]
[1766652882145,0.88483926,841.33,840.46,0.89106374]
[1766652882549,0.88483926,841.34,840.46,0.89106374]
[1766652883344,0.88483926,841.35,840.45,0.89106374]
[1766652884145,0.88483926,841.36,840.43,0.89106374]
[1766652884352,0.88483926,841.37,840.43,0.89106374]
[1766652884651,0.88483926,841.46,840.53,0.89106374]
[1766652885352,0.88483926,841.48,840.51,0.89106374]
[1766652886252,0.88483926,841.49,840.49,0.89106374]
[1766652887353,0.88483926,841.51,840.48,0.89106374]
[1766652888352,0.20677915,841.73,840.47,0.89106374]
[1766652888353,0.88483926,841.52,840.47,0.89106374]
[1766652889353,0.88483926,841.54,840.47,0.89106374]
[1766652890150,0.88483926,841.56,840.46,0.89106374]
[1766652891250,0.88483926,841.56,840.45,0.89106374]
[1766652892351,0.88483926,841.57,840.45,0.89106374]
[1766652893156,0.88483926,841.56,840.42,0.89106374]
[1766652895257,0.88483926,841.57,840.41,0.89106374]
[1766652897154,0.88483926,841.58,840.4,0.89106374]
[1766652902160,0.88483926,841.59,840.4,0.89106374]
[1766652903260,0.20688302,841.3,840.4,0.89106374]
[1766652904965,0.20688302,841.3,840.42,0.89106374]
[1766652908263,0.20688302,841.3,840.43,0.89106374]
[1766652911366,0.20688302,841.3,840.44,0.89106374]
[1766652913269,0.20688302,841.3,840.45,0.89106374]
[1766652913475,0.20688302,841.3,840.44,0.89106374]
[1766652913974,0.20688302,841.3,840.29,1.1827121]
[1766652914274,0.20688302,841.3,840.45,0.88690306]
[1766652915277,0.20688302,841.3,840.46,0.88690306]
[1766652916175,0.20688302,841.3,840.47,0.88690306]
[1766652917178,0.20688302,841.3,840.48,0.88690306]
[1766652918180,0.20688302,841.3,840.49,0.88690306]
[1766652919277,0.20688302,841.3,840.5,0.88690306]
[1766652920180,0.20688302,841.3,840.51,0.88690306]
[1766652921179,0.20688302,841.3,840.52,0.88690306]
[1766652922284,0.20688302,841.3,840.54,0.88690306]
[1766652923384,0.20688302,841.3,840.56,0.88690306]
[1766652924184,0.20688302,841.3,840.58,0.88690306]
[1766652925180,0.20688302,841.3,840.62,0.88690306]
[1766652926179,0.20688302,841.3,840.63,0.88690306]
[1766652928181,0.20688302,841.3,840.64,0.88690306]
[1766652928384,0.20688302,841.3,840.69,0.88690306]
[1766652928885,0.20688302,841.3,840.67,0.88690306]
[1766652929184,0.20688302,841.3,840.68,0.88690306]
[1766652933385,0.20688302,841.3,840.71,0.88690306]
[1766652933885,0.20688302,841.3,840.69,0.88690306]
[1766652935187,0.20688302,841.3,840.54,1.1827121]
[1766652935188,0.20688302,841.3,840.71,0.88690306]
[1766652937193,0.20688302,841.3,840.72,0.88690306]
[1766652937394,0.20688302,841.3,840.41,1.77406816]
[1766652937395,0.20688302,841.3,840.73,0.88690306]
[1766652937689,0.88148583,841.51,840.73,0.88690306]
[1766652937894,0.88148583,841.54,840.76,0.88690306]
[1766652938092,0.20684798,841.41,840.76,0.88690306]
[1766652938290,0.20684798,841.41,840.8,0.88690306]
[1766652939193,0.20684798,841.41,840.79,0.88690306]
[1766652939493,0.20684798,841.41,840.8,0.88690306]
[1766652939690,0.20684798,841.41,840.82,0.88690306]
[1766652939891,0.88148583,841.64,840.83,0.88690306]
[1766652940095,0.88148583,841.65,840.84,0.88690306]
[1766652940297,0.20682339,841.51,840.83,0.88690306]
[1766652941194,0.20682339,841.51,840.82,0.88690306]
[1766652942091,0.20682339,841.51,840.81,0.88690306]
[1766652942389,0.20682339,841.51,840.82,0.88690306]
[1766652942592,0.88148583,841.75,840.87,0.88690306]
[1766652942791,0.20680741,841.6,840.87,0.88690306]
[1766652943097,0.20680741,841.6,840.86,0.88690306]
[1766652944195,0.20680741,841.6,840.85,0.88690306]
[1766652945291,0.20680741,841.6,840.84,0.88690306]
[1766652946196,0.20680741,841.6,840.83,0.88690306]
[1766652948094,0.20680741,841.6,840.82,0.88690306]
[1766652950197,0.20680741,841.6,840.81,0.88690306]
[1766652953198,0.20680741,841.6,840.8,0.88690306]
[1766652953896,0.20680741,841.6,840.82,0.88690306]
[1766652954301,0.20680741,841.6,840.81,0.88690306]
[1766652955300,0.20680741,841.6,840.84,0.88690306]
[1766652957397,0.20680741,841.6,840.83,0.88690306]
[1766652960198,0.20680741,841.6,840.81,0.88690306]
[1766652962606,0.20680741,841.6,840.75,0.88690306]
[1766652962808,0.20680741,841.6,840.74,0.88690306]
[1766652964302,0.20680741,841.6,840.75,0.88690306]
[1766652967407,0.20680741,841.6,840.76,0.88690306]
[1766652970213,0.20680741,841.6,840.77,0.88690306]
[1766652971415,0.20680741,841.6,840.78,0.88690306]
[1766652973111,0.20680741,841.6,840.79,0.88690306]
[1766652975217,0.20680741,841.6,840.8,0.88690306]
[1766652975917,0.20680741,841.6,840.82,0.88690306]
[1766652976218,0.20680741,841.6,840.83,0.88690306]
[1766652978117,0.20680741,841.6,840.84,0.88690306]
[1766652979115,0.20680741,841.6,840.85,0.88690306]
[1766652980219,0.20680741,841.6,840.86,0.88690306]
[1766652981117,0.20680741,841.6,840.71,1.1827121]
[1766652981118,0.20680741,841.6,840.87,0.88690306]
[1766652982114,0.20680741,841.6,840.88,0.88690306]
[1766652983215,0.20680741,841.6,840.89,0.88690306]
[1766652983619,0.20680741,841.6,840.87,0.88690306]
[1766652983816,1.08829324,841.6,840.81,0.88690306]
[1766652984221,0.88148583,841.59,840.81,0.88690306]
[1766652984416,1.08829324,841.6,840.81,0.88690306]
[1766652986318,1.08829324,841.6,840.8,0.88690306]
[1766652987919,0.88148583,841.56,840.76,0.88690306]
[1766652988424,0.88148583,841.56,840.75,0.88690306]
[1766652989321,0.88148583,841.57,840.75,0.88690306]
[1766652990329,0.88148583,841.57,840.74,0.88690306]
[1766652992031,0.88148583,841.52,840.68,0.88690306]
[1766652992531,0.88148583,841.53,840.68,0.88690306]
[1766652993428,0.88148583,841.53,840.67,0.88690306]
[1766652994332,0.88148583,841.54,840.67,0.88690306]
[1766652995431,0.88148583,841.54,840.66,0.88690306]
[1766652996027,0.88148583,841.51,840.63,0.88690306]
[1766652996431,0.88148583,841.5,840.61,0.88690306]
[1766652996932,0.88148583,841.5,839.77,0.01344791]
[1766652996933,0.88148583,841.47,840.58,0.88690306]
[1766652997534,0.88148583,841.39,840.49,0.88690306]
[1766652998529,0.88148583,841.41,840.47,0.88690306]
[1766652999435,0.88148583,841.42,840.46,0.88690306]
[1766653000634,0.88148583,841.43,840.45,0.88690306]
[1766653001434,0.88148583,841.43,840.44,0.88690306]
[1766653002435,0.88148583,841.44,840.43,0.88690306]
[1766653003136,0.88148583,841.43,840.43,0.88690306]
[1766653003337,0.88148583,841.44,840.43,0.88690306]
[1766653004337,0.88148583,841.44,840.42,0.88690306]
[1766653005434,0.88148583,841.45,840.42,0.88690306]
[1766653008437,0.88148583,841.45,840.26,1.1827121]
[1766653008438,0.88148583,841.46,840.41,0.88690306]
[1766653008736,0.88148583,841.48,840.43,0.88690306]
[1766653013438,0.88148583,841.48,840.42,0.88690306]
[1766653016447,0.88148583,841.48,840.43,0.88690306]
[1766653020448,0.88148583,841.47,840.43,0.88690306]
[1766653022450,0.88148583,841.46,840.44,0.88690306]
[1766653024252,0.88148583,841.46,840.45,0.88690306]
[1766653024449,0.88148583,841.45,840.45,0.88690306]
[1766653025355,0.88148583,841.45,840.46,0.88690306]
[1766653026452,0.88148583,841.44,840.46,0.88690306]
[1766653027456,0.88148583,841.43,840.47,0.88690306]
[1766653028458,0.20680741,841.6,840.48,0.88690306]
[1766653028459,0.88148583,841.42,840.48,0.88690306]
[1766653029560,0.88148583,841.41,840.49,0.88690306]
[1766653030562,0.88148583,841.41,840.49,0.8898691]
[1766653030563,0.88595577,841.41,840.49,0.8898691]
[1766653031258,0.88595577,841.4,840.5,0.8898691]
[1766653032359,0.88595577,841.39,840.51,0.8898691]
[1766653033458,0.88595577,841.38,840.52,0.8898691]
[1766653035360,0.88595577,841.37,840.53,0.8898691]
[1766653036365,0.88595577,841.36,840.54,0.8898691]
[1766653037466,0.88595577,841.35,840.55,0.8898691]
[1766653039268,0.20680741,841.6,840.56,0.8898691]
[1766653039269,0.88595577,841.34,840.56,0.8898691]
[1766653040369,0.88595577,841.33,840.57,0.8898691]
[1766653041370,0.88595577,841.32,840.58,0.8898691]
[1766653042366,0.88595577,841.31,840.59,0.8898691]
[1766653046470,0.2068984,841.14,840.59,0.8898691]
[1766653052278,0.2068984,841.14,840.6,0.8898691]
[1766653063485,0.2068984,841.14,840.52,0.8898691]
[1766653063686,0.88595577,841.11,840.41,0.8898691]
[1766653063990,0.88595577,841.06,840.36,0.8898691]
[1766653064490,0.88595577,841.1,840.32,0.8898691]
[1766653065291,0.88595577,841.11,840.31,0.8898691]
[1766653066292,0.88595577,841.12,840.3,0.8898691]
[1766653066788,0.88595577,841.1,840.28,0.8898691]
[1766653067392,0.88595577,841.11,840.27,0.8898691]
[1766653068291,0.88595577,841.12,840.26,0.8898691]
[1766653069294,0.88595577,841.13,840.25,0.8898691]
[1766653070294,0.88595577,841.13,840.24,0.8898691]
[1766653071292,1.09285417,841.14,840.24,0.8898691]
[1766653072296,0.2068984,841.14,840.25,0.8898691]
[1766653075296,0.2068984,841.14,840.24,0.8898691]
[1766653080302,0.2068984,841.14,840.23,0.8898691]
[1766653092515,0.2068984,841.14,840.24,0.8898691]
[1766653092715,0.2068984,841.14,840.27,0.8898691]
[1766653093513,0.2068984,841.14,840.28,0.8898691]
[1766653097116,0.2068984,841.14,840.29,0.8898691]
[1766653099822,0.2068984,841.14,840.35,0.8898691]
[1766653100024,0.2068984,841.14,840.44,0.8898691]
[1766653100224,0.2068984,841.14,840.43,0.8898691]
[1766653100421,0.2068984,841.14,840.44,0.8898691]
[1766653100826,0.2068984,841.14,840.45,0.8898691]
[1766653102421,0.2068984,841.14,840.46,0.8898691]
[1766653103624,0.88595577,841.36,840.46,0.8898691]
[1766653103824,0.88595577,841.41,840.52,0.8898691]
[1766653104030,0.20688856,841.25,840.52,0.8898691]
[1766653104228,0.20688856,841.25,840.51,0.8898691]
[1766653107127,0.20688856,841.25,840.5,0.8898691]
[1766653109339,0.20688856,841.25,840.49,0.8898691]
[1766653112237,0.20688856,841.25,840.48,0.8898691]
[1766653115040,0.20688856,841.25,840.5,0.8898691]
[1766653116037,0.20688856,841.25,840.49,0.8898691]
[1766653117041,0.20688856,841.25,840.51,0.8898691]
[1766653117239,0.20688856,841.25,840.53,0.8898691]
[1766653117437,0.20688856,841.25,840.56,0.8898691]
[1766653119141,0.88595577,841.56,840.55,0.8898691]
[1766653119544,0.20685904,841.35,840.55,0.8898691]
[1766653120743,0.20685904,841.35,840.56,0.8898691]
[1766653121047,0.20685904,841.35,840.58,0.8898691]
[1766653124243,0.20685904,841.35,840.57,0.8898691]
[1766653124442,0.20685904,841.35,840.58,0.8898691]
[1766653125247,0.20685904,841.35,840.57,0.8898691]
[1766653132252,0.20685904,841.35,840.58,0.8898691]
[1766653135052,0.20685904,841.35,840.59,0.8898691]
[1766653136151,0.20685904,841.35,840.6,0.8898691]
[1766653138256,0.20685904,841.35,840.61,0.8898691]
[1766653140157,0.20685904,841.35,840.62,0.8898691]
[1766653141153,0.20685904,841.35,840.63,0.8898691]
[1766653142458,0.20685904,841.35,840.64,0.8898691]
[1766653143260,0.20685904,841.35,840.65,0.8898691]
[1766653144158,0.20685904,841.35,840.66,0.8898691]
[1766653146060,0.20685904,841.35,840.67,0.8898691]
[1766653148465,0.20685904,841.35,840.68,0.8898691]
[1766653153067,0.20685904,841.35,840.69,0.8898691]
[1766653155465,0.20685904,841.35,840.64,0.8898691]
[1766653155668,0.20685904,841.35,840.57,0.8898691]
[1766653163278,0.20685904,841.35,840.56,0.8898691]
[1766653167379,0.20685904,841.35,840.55,0.8898691]
[1766653181595,0.20685904,841.35,840.54,0.8898691]
[1766653182093,0.20685904,841.35,840.58,0.8898691]
[1766653183298,0.20685904,841.35,840.59,0.8898691]
[1766653190411,0.20685904,841.35,840.6,0.8898691]
[1766653194412,0.20685904,841.35,840.61,0.8898691]
[1766653197518,0.20685904,841.35,840.62,0.8898691]
[1766653199423,0.20685904,841.35,840.63,0.8898691]
[1766653200322,0.20685904,841.35,840.64,0.8898691]
[1766653201119,0.20685904,841.35,840.63,0.8898691]
[1766653201523,0.20685904,841.35,840.65,0.8898691]
[1766653203522,0.20685904,841.35,840.69,0.8898691]
[1766653203724,0.20685904,841.35,840.7,0.8898691]
[1766653204425,0.20685904,841.35,840.69,0.8898691]
[1766653209629,0.20685904,841.35,840.68,0.8898691]
[1766653212727,0.20685904,841.35,840.69,0.8898691]
[1766653213432,0.20685904,841.35,840.68,0.8898691]
[1766653219334,0.20685904,841.35,840.69,0.8898691]
[1766653237453,0.20685904,841.35,840.68,0.8898691]
[1766653237658,0.20685904,841.35,840.67,0.8898691]
[1766653242065,0.88595577,841.32,840.59,0.8898691]
[1766653242561,0.20685904,841.35,839.75,0.01028476]
[1766653242562,0.88595577,841.31,840.56,0.8898691]
[1766653242765,0.88595577,841.29,840.54,0.8898691]
[1766653243364,0.88595577,841.3,840.53,0.8898691]
[1766653245267,0.88595577,841.3,840.23,1.77406816]
[1766653245268,0.88595577,841.3,840.52,0.8898691]
[1766653246466,0.88595577,841.31,840.52,0.8898691]
[1766653248466,0.88595577,841.32,840.51,0.8898691]
[1766653251365,0.88595577,841.33,840.5,0.8898691]
[1766653254370,0.88595577,841.34,840.5,0.8898691]
[1766653258372,0.88595577,841.34,840.49,0.8898691]
[1766653260271,0.88595577,841.33,840.48,0.8898691]
[1766653264274,0.88595577,841.33,840.47,0.8898691]
[1766653265074,0.88595577,841.32,840.47,0.8898691]
[1766653265679,0.88595577,841.3,840.45,0.8898691]
[1766653265879,0.88595577,841.3,840.44,0.8898691]
[1766653266080,0.88595577,841.28,840.43,0.8898691]
[1766653266378,0.88595577,841.28,840.27,1.1827121]
[1766653266379,0.88595577,841.28,840.42,0.8898691]
[1766653267375,0.88595577,841.23,840.36,0.8898691]
[1766653270180,0.88595577,841.24,840.35,0.8898691]
[1766653274183,0.88595577,841.24,840.34,0.8898691]
[1766653274383,0.88595577,841.24,840.35,0.8898691]
[1766653276181,0.88595577,841.24,840.34,0.8898691]
[1766653276385,0.88595577,841.24,840.35,0.8898691]
[1766653279485,0.88595577,841.23,840.35,0.8898691]
[1766653280186,0.88595577,841.24,840.35,0.8898691]
[1766653280485,0.88595577,841.23,840.35,0.8898691]
[1766653282294,0.88595577,841.23,840.36,0.8898691]
[1766653282494,0.20685904,841.35,840.36,0.8898691]
[1766653282495,0.88595577,841.22,840.36,0.8898691]
[1766653285396,0.88595577,841.21,840.37,0.8898691]
[1766653286293,0.20685904,841.35,840.37,0.8898691]
[1766653286294,0.88595577,841.22,840.37,0.8898691]
[1766653286494,0.88595577,841.21,840.37,0.8898691]
[1766653289997,0.88595577,841.22,840.38,0.8898691]
[1766653294397,0.88595577,841.22,840.39,0.8898691]
[1766653297398,0.88595577,841.21,840.39,0.8898691]
[1766653300406,0.88595577,841.21,840.4,0.8898691]
[1766653301306,0.88595577,841.2,840.4,0.8898691]
[1766653301905,0.88595577,841.21,840.4,0.8898691]
[1766653302401,0.88595577,841.2,840.4,0.8898691]
[1766653303307,0.88595577,841.2,840.41,0.8898691]
[1766653304408,0.88595577,841.19,840.41,0.8898691]
[1766653306111,0.88595577,841.19,840.42,0.8898691]
[1766653308210,0.88595577,841.18,840.43,0.8898691]
[1766653309409,0.88595577,841.17,840.43,0.8898691]
[1766653310213,0.88595577,841.17,840.44,0.8898691]
[1766653311211,0.88595577,841.16,840.44,0.8898691]
[1766653311713,0.88595577,841.16,840.45,0.8898691]
[1766653312209,0.88595577,841.15,840.46,0.8898691]
[1766653316315,0.88595577,841.17,840.48,0.8898691]
[1766653316616,0.88595577,841.23,840.54,0.8898691]
[1766653317214,0.20685904,841.35,840.52,0.8898691]
[1766653317215,0.88595577,841.25,840.52,0.8898691]
[1766653317417,0.88595577,841.28,840.55,0.8898691]
[1766653318215,0.88595577,841.29,840.54,0.8898691]
[1766653319717,0.20689409,841.16,840.54,0.8898691]
[1766653320115,0.20689409,841.16,840.56,0.8898691]
[1766653321718,0.20689409,841.16,840.55,0.8898691]
[1766653322414,0.20689409,841.16,840.54,0.8898691]
[1766653324518,0.20689409,841.16,840.53,0.8898691]
[1766653325320,0.88595577,841.41,840.59,0.8898691]
[1766653325520,0.88595577,841.48,840.66,0.8898691]
[1766653325721,0.20687933,841.26,840.66,0.8898691]
[1766653326420,0.20687933,841.26,840.65,0.8898691]
[1766653327418,0.20687933,841.26,840.64,0.8898691]
[1766653328317,0.20687933,841.26,840.48,1.1827121]
[1766653328318,0.20687933,841.26,840.63,0.8898691]
[1766653329423,0.20687933,841.26,840.62,0.8898691]
[1766653330418,0.20687933,841.26,840.47,1.1827121]
[1766653330419,0.20687933,841.26,840.61,0.8898691]
[1766653331826,0.20687933,841.26,840.63,0.8898691]
[1766653332426,0.20687933,841.26,840.62,0.8898691]
[1766653333725,0.20687933,841.26,840.63,0.8898691]
[1766653334127,0.20687933,841.26,840.68,0.8898691]
[1766653334324,0.20687933,841.26,840.67,0.8898691]
[1766653335329,0.20687933,841.26,840.66,0.8898691]
[1766653337326,0.20687933,841.26,840.65,0.8898691]
[1766653339325,0.20687933,841.26,840.64,0.8898691]
[1766653342336,0.20687933,841.26,840.63,0.8898691]
[1766653350238,0.20687933,841.26,840.64,0.8898691]
[1766653353135,0.88595577,841.67,840.64,0.8898691]
[1766653353440,0.20683691,841.38,840.65,0.8898691]
[1766653355445,0.20683691,841.38,840.66,0.8898691]
[1766653357245,0.20683691,841.38,840.67,0.8898691]
[1766653358346,0.20683691,841.38,840.68,0.8898691]
[1766653359247,0.20683691,841.38,840.69,0.8898691]
[1766653360154,0.20683691,841.38,840.7,0.8898691]
[1766653361252,0.20683691,841.38,840.71,0.8898691]
[1766653363156,0.20683691,841.38,840.72,0.8898691]
[1766653364153,0.20683691,841.38,840.73,0.8898691]
[1766653366456,0.20683691,841.38,840.74,0.8898691]
[1766653368356,0.20683691,841.38,840.75,0.8898691]
[1766653369361,0.20683691,841.38,840.77,0.8898691]
[1766653370359,0.20683691,841.38,840.78,0.8898691]
[1766653374461,0.20683691,841.38,840.79,0.8898691]
[1766653377273,0.20683691,841.38,840.8,0.8898691]
[1766653378468,0.20683691,841.38,840.81,0.8898691]
[1766653378871,0.20683691,841.38,840.87,0.8898691]
[1766653379268,0.20683691,841.38,840.92,0.8898691]
[1766653379473,0.20683691,841.38,840.9,0.8898691]
[1766653381276,0.20683691,841.38,840.87,0.8898691]
[1766653381669,0.20683691,841.38,840.03,0.01136849]
[1766653381670,0.20683691,841.38,840.83,0.8898691]
[1766653381874,0.20683691,841.38,840.77,0.8898691]
[1766653382169,0.20683691,841.38,840.74,0.8898691]
[1766653383174,0.20683691,841.38,840.73,0.8898691]
[1766653385575,0.20683691,841.38,840.75,0.8898691]
[1766653388681,0.20683691,841.38,840.76,0.8898691]
[1766653388881,0.20683691,841.38,840.77,0.8898691]
[1766653391884,0.20683691,841.38,839.93,0.01155697]
[1766653391885,0.20683691,841.38,840.76,0.8898691]
[1766653395785,0.20683691,841.38,840.74,0.8898691]
[1766653396790,0.20683691,841.38,840.71,0.8898691]
[1766653398088,0.20683691,841.38,840.7,0.8898691]
[1766653421705,0.20683691,841.38,840.66,0.8898691]
[1766653422001,0.20683691,841.38,840.65,0.8898691]
[1766653422505,0.20683691,841.38,840.62,0.8898691]
[1766653423202,0.20683691,841.38,840.59,0.8898691]
[1766653424302,1.09279268,841.38,840.6,0.8898691]
[1766653424802,0.88595577,841.34,840.55,0.8898691]
[1766653425205,0.88595577,841.35,840.54,0.8898691]
[1766653428106,0.88595577,841.36,840.53,0.8898691]
[1766653430206,0.88595577,841.37,840.52,0.8898691]
[1766653433109,1.09279268,841.38,840.52,0.8898691]
[1766653435107,1.09279268,841.38,840.51,0.8898691]
[1766653440114,1.09279268,841.38,840.52,0.8898691]
[1766653441114,1.09279268,841.38,840.51,0.8898691]
[1766653450123,1.09279268,841.38,840.52,0.8898691]
[1766653451824,0.20683691,841.38,840.37,1.1827121]
[1766653452127,0.20683691,841.38,840.53,0.89034615]
[1766653453124,0.20683691,841.38,840.54,0.89034615]
[1766653456131,1.095693,841.38,840.54,0.89034615]
[1766653457132,1.095693,841.38,840.55,0.89034615]
[1766653459334,0.88885609,841.37,840.55,0.89034615]
[1766653460136,0.88885609,841.37,840.56,0.89034615]
[1766653462340,0.88885609,841.36,840.56,0.89034615]
[1766653463134,0.88885609,841.36,840.58,0.89034615]
[1766653463538,0.20683691,841.38,840.6,0.89034615]
[1766653464238,0.20683691,841.38,840.61,0.89034615]
[1766653465136,1.095693,841.38,840.62,0.89034615]
[1766653465939,0.20683691,841.38,840.63,0.89034615]
[1766653466135,1.095693,841.38,840.64,0.89034615]
[1766653467140,1.095693,841.38,840.65,0.89034615]
[1766653468138,0.20683691,841.38,840.49,1.1827121]
[1766653468441,1.09720925,841.38,840.64,0.89185869]
[1766653471045,0.20683691,841.38,840.64,0.89185869]
[1766653478245,0.20683691,841.38,840.63,0.89185869]
[1766653481949,0.20683691,841.38,840.64,0.89185869]
[1766653485160,0.20683691,841.38,840.69,0.89185869]
[1766653488060,0.20683691,841.38,840.68,0.89185869]
[1766653497265,0.20683691,841.38,840.62,0.89185869]
[1766653500366,0.20683691,841.38,840.47,1.1827121]
[1766653501367,0.20683691,841.38,840.32,1.77406816]
[1766653501667,0.20683691,841.38,840.61,0.89130585]
[1766653503468,0.88991666,841.37,840.59,0.89130585]
[1766653505169,0.88991666,841.36,840.59,0.89130585]
[1766653505370,0.88991666,841.37,840.59,0.89130585]
[1766653506171,0.88991666,841.36,840.59,0.89130585]
[1766653510170,0.88991666,841.36,840.44,1.18840781]
[1766653510171,0.88991666,841.33,840.55,0.89130585]
[1766653510575,0.88991666,841.29,840.55,0.89130585]
[1766653510772,0.88991666,841.24,840.46,0.89130585]
[1766653510972,0.88991666,841.22,840.44,0.89130585]
[1766653511472,0.88991666,841.23,840.42,0.89130585]
[1766653512276,0.88991666,841.24,840.41,0.89130585]
[1766653513277,0.88991666,841.25,840.4,0.89130585]
[1766653514278,0.88991666,841.25,840.39,0.89130585]
[1766653515375,0.88991666,841.26,840.38,0.89130585]
[1766653516279,0.88991666,841.27,840.38,0.89130585]
[1766653516680,0.88991666,841.26,840.37,0.89130585]
[1766653517379,0.88991666,841.27,840.37,0.89130585]
[1766653518075,0.88991666,841.27,840.36,0.89130585]
[1766653520177,0.88991666,841.28,840.35,0.89130585]
[1766653522281,0.88991666,841.29,840.34,0.89130585]
[1766653525283,0.88991666,841.3,840.34,0.89130585]
[1766653526281,0.88991666,841.3,840.03,1.77406816]
[1766653526282,0.88991666,841.3,840.33,0.89130585]
[1766653529785,0.88991666,841.29,840.32,0.89130585]
[1766653533087,0.88991666,841.29,840.33,0.89130585]
[1766653536090,0.88991666,841.28,840.33,0.89130585]
[1766653537086,0.88991666,841.28,840.34,0.89130585]
[1766653539287,0.88991666,841.27,840.35,0.89130585]
[1766653540392,0.20683691,841.38,840.35,0.89130585]
[1766653540393,0.88991666,841.26,840.35,0.89130585]
[1766653540588,0.88991666,841.27,840.35,0.89130585]
[1766653541093,0.88991666,841.26,840.36,0.89130585]
[1766653542088,0.88991666,841.26,840.21,1.18840781]
[1766653542089,0.88991666,841.26,840.37,0.89130585]
[1766653543195,0.88991666,841.26,840.38,0.89130585]
[1766653544196,0.88991666,841.25,840.38,0.89130585]
[1766653547001,0.88991666,841.25,840.39,0.89130585]
[1766653547301,0.88991666,841.24,840.39,0.89130585]
[1766653548304,0.88991666,841.24,840.4,0.89130585]
[1766653549407,0.88991666,841.23,840.4,0.89130585]
[1766653550305,0.88991666,841.23,840.41,0.89130585]
[1766653551314,0.88991666,841.22,840.41,0.89130585]
[1766653552413,0.88991666,841.22,840.11,1.77406816]
[1766653552414,0.88991666,841.21,840.42,0.89130585]
[1766653553315,0.88991666,841.2,840.43,0.89130585]
[1766653553814,0.20692854,841.01,840.43,0.89130585]
[1766653554314,0.20692854,841.01,840.45,0.89130585]
[1766653555210,0.20692854,841.01,840.46,0.89130585]
[1766653558315,0.20692854,841.01,840.47,0.89130585]
[1766653561119,0.20692854,841.01,840.46,0.89130585]
[1766653563323,0.20692854,841.01,840.47,0.89130585]
[1766653566021,0.20692854,841.01,840.46,0.89130585]
[1766653572017,0.20692854,841.01,840.31,1.18840781]
[1766653572018,0.20692854,841.01,840.45,0.89130585]
[1766653572221,0.20692854,841.01,840.46,0.89130585]
[1766653572422,0.20692854,841.01,840.45,0.89130585]
[1766653573324,0.20692854,841.01,840.46,0.89130585]
[1766653574225,0.20692854,841.01,840.45,0.89130585]
[1766653574425,0.20692854,841.01,840.43,0.89130585]
[1766653584728,0.20692854,841.01,840.42,0.89130585]
[1766653597942,0.20692854,841.01,840.43,0.89130585]
[1766653602046,0.20692854,841.01,840.42,0.89130585]
[1766653603247,0.20692854,841.01,840.43,0.89130585]
[1766653615255,0.20692854,841.01,840.41,0.89130585]
[1766653632272,0.20692854,841.01,840.4,0.89130585]
[1766653633075,0.20692854,841.01,840.38,0.89130585]
[1766653633374,0.20692854,841.01,840.32,0.89130585]
[1766653634372,0.20692854,841.01,840.31,0.89130585]
[1766653637475,0.20692854,841.01,840.3,0.89130585]
[1766653643376,0.20692854,841.01,840.29,0.89130585]
[1766653659597,0.20692854,841.01,840.14,1.18840781]
[1766653659796,0.20692854,841.01,840.29,0.89168264]
[1766653671402,0.20692854,841.01,840.3,0.89168264]
[1766653675105,0.20692854,841.01,840.31,0.89168264]
[1766653676612,0.20692854,841.01,840.32,0.89168264]
[1766653677311,0.20692854,841.01,840.33,0.89168264]
[1766653678713,0.20692854,841.01,840.35,0.89168264]
[1766653679213,0.20692854,841.01,840.36,0.89168264]
[1766653683414,0.20692854,841.01,840.35,0.89168264]
[1766653692320,0.20692854,841.01,840.36,0.89168264]
[1766653692523,0.20692854,841.01,840.35,0.89168264]
[1766653692723,0.20692854,841.01,840.36,0.89168264]
[1766653693320,0.20692854,841.01,840.35,0.89168264]
[1766653697330,0.20692854,841.01,840.35,0.8920609]
[1766653710036,0.20692854,841.01,840.36,0.8920609]
[1766653716038,0.20692854,841.01,840.41,0.8920609]
[1766653718446,0.20692854,841.01,840.4,0.8920609]
[1766653722250,0.20692854,841.01,840.41,0.8920609]
[1766653722448,0.20692854,841.01,840.4,0.8920609]
[1766653741859,0.20692854,841.01,840.4,0.89091826]
[1766653743063,0.20692854,841.01,840.44,0.89091826]
[1766653743858,0.89189597,841.23,840.47,0.89091826]
[1766653744160,0.20690947,841.14,840.47,0.89091826]
[1766653746264,0.20690947,841.14,840.46,0.89091826]
[1766653746961,0.20690947,841.14,840.52,0.89091826]
[1766653747166,0.20690947,841.14,840.54,0.89091826]